[Event "31st Kavala Open-A 2022"]
[Site "Kavala"]
[Date "2022.07.31"]
[Round "7.11"]
[White "Koutlas, Nikolaos"]
[Black "Celik, Hasan Huseyin"]
[Result "0-1"]
[ECO "D02"]
[WhiteElo "2314"]
[BlackElo "2363"]
[Annotator "TA"]
[PlyCount "116"]
[EventDate "2022.07.27"]
[EventType "swiss"]
[EventCountry "GRE"]
[SourceTitle "playchess.com"]
[Source "ChessBase"]
[SourceQuality "1"]
[TimeControl "40/5400+30:1800+30"]

{[%evp 12,116,-6,0,-5,-7,-8,0,0,0,0,0,0,-2,-2,0,8,-2,-14,-12,4,0,6,1,4,0,0,0,0,-8,-16,-2,-8,-140,-137,-132,-100,-103,-75,-83,-78,-140,-78,-79,-46,-66,0,0,0,0,34,39,35,41,47,-33,0,-20,-28,-288,-295,-303,-281,-289,-298,-297,-280,-281,-291,-302,-295,-310,-258,-303,-293,-554,-564,-573,-566,-561,-516,-591,-585,-551,-425,-615,-600,-591,-582,-693,-686,-758,-725,-702,-675,-667,-613,-658,-493,-546,-482,-663,-626,-29974,-29970,-29975,-4308]} 1. Nf3 {[%emt 0:00:15]} d5 {[%emt 0:00:20]} 2. d4 {[%emt 0:00:10]} Nf6 {[%emt 0:00:20]} 3. Bf4 {[%emt 0:00:47]} g6 {[%emt 0:01:13]} 4. h3 {[%emt 0:01:23]} Bg7 {[%emt 0:00:09]} 5. e3 {[%emt 0:00:06]} O-O {[%emt 0:00:05]} 6. Bd3 {[%emt 0:00:27]} c5 {[%emt 0:00:13]} 7. c3 {[%emt 0:01:37]} (7. dxc5 Nfd7 8. Nc3 e5 $17) 7... Nc6 {[%emt 0:00:19] D02: 1 d4 d5 2 Nf3 sidelines, including 2...Nf6 3 g3 and 2...Nf6 3 Bf4.} 8. O-O {[%emt 0:09:25]} Nd7 {[%emt 0:00:09]} 9. Nbd2 {[%emt 0:10:06]} e5 {[%emt 0:00:09] The position is equal.} 10. dxe5 {[%emt 0:00:05]} Ndxe5 {[%emt 0:00:05]} 11. Bc2 {[%emt 0:00:15]} Qb6 {[%emt 0:04:27]} 12. Rb1 {[%emt 0:05:08]} Rd8 {[%emt 0:08:11] [#]} 13. Bg5 $146 {[%emt 0:09:01]} ({Predecessor:} 13. Qe2 h6 14. Rfd1 Be6 15. Nxe5 Nxe5 16. Bb3 Bf5 17. e4 dxe4 18. Nxe4 c4 19. Bc2 {0-1 (28) Delgado Pico,L (2050)-Antoli Royo,J (2414) Badajoz 2013}) 13... f6 {[%emt 0:13:15]} 14. Nxe5 {[%emt 0:03:13]} fxg5 {[%emt 0:04:43]} 15. Nxc6 {[%emt 0:06:38]} Qxc6 {[%emt 0:05:14]} 16. Ne4 {[%emt 0:01:45]} h6 {[%emt 0:07:57]} 17. Ng3 {[%emt 0:03:34]} b6 {[%emt 0:05:45]} 18. Qd3 {[%emt 0:08:22]} Rd6 {[%emt 0:04:02]} 19. e4 {[%emt 0:05:57] Black must now prevent exd5.} c4 {[%emt 0:01:23]} 20. Qe2 {[%emt 0:06:06] Threatens to win with exd5.} d4 $36 {[%emt 0:02:52][%mdl 2048] Black has the initiative.} 21. cxd4 {[%emt 0:00:08]} Rxd4 {[%emt 0:00:31]} 22. f4 {[%emt 0:04:47]} (22. Rbd1 $11 {keeps the balance.}) 22... gxf4 $17 {[%emt 0:01:51]} 23. Rxf4 {[%emt 0:00:03]} Be5 {[%emt 0:00:16]} 24. Rf3 {[%emt 0:01:26]} Rd7 {[%emt 0:18:52]} 25. Kh1 {[%emt 0:02:09][%cal Og3f5]} Bb7 {[%emt 0:00:32] This bishop pair is nice.} 26. Rbf1 {[%emt 0:03:07]} (26. Nf1 $142) 26... b5 {[%emt 0:04:26]} (26... Bxb2 27. e5 Re8 28. Rf6 Qxg2+ 29. Qxg2 Bxg2+ 30. Kxg2 Bxe5 31. Rxg6+ Rg7 32. Rxg7+ Bxg7 33. Rd1 $18) (26... Rad8 $142 27. Qe3 Bg7) 27. Qe3 {[%emt 0:01:57]} Kg7 {[%emt 0:00:25]} (27... Bxb2 28. Qxh6 Bg7 29. Qg5 $11) 28. Qf2 {[%emt 0:05:22]} Qe6 {[%emt 0:02:43] Against Rf7+} (28... Bxb2 29. e5 Bxe5 30. Nh5+ $1 Kg8 31. Nf6+ Bxf6 32. Rxf6 Qxg2+ 33. Qxg2 Bxg2+ 34. Kxg2 $16) (28... Rg8 $1 $15 29. Qxa7 Bxb2) 29. Ne2 $11 {[%emt 0:00:15]} Re8 {[%emt 0:06:52]} 30. Nf4 {[%emt 0:01:29]} (30. Qc5 Qb6 31. Qb4 Ree7 $17) 30... Qe7 {[%emt 0:00:42]} 31. Nd5 {[%emt 0:01:41]} Bxd5 {[%emt 0:00:50]} 32. exd5 {[%emt 0:00:01]} Red8 {[%emt 0:00:50]} 33. Re1 {[%emt 0:02:55]} (33. h4 $14) 33... Qd6 {[%emt 0:00:53]} 34. Rf1 {[%emt 0:02:36]} Qxd5 {[%emt 0:00:41]} 35. Rf6 $2 {[%emt 0:02:00][%mdl 8192] This costs White the game.} Bxf6 $19 {[%emt 0:00:19] Active counter play!} 36. Qxf6+ {[%emt 0:00:01] [#]} Kg8 $1 {[%emt 0:00:16]} 37. Bxg6 {[%emt 0:00:17]} (37. Qxg6+ Rg7 38. Qe4 Qxe4 39. Bxe4 Rd2 $19) 37... Qg5 {[%emt 0:00:34] ...Qxf6 is the strong threat.} (37... Rg7 $2 38. Be4 Qd6 39. Qf5 $19) 38. Qe6+ {[%emt 0:02:02]} Kh8 {[%emt 0:00:16]} 39. Bc2 {[%emt 0:02:25] Against Rd1} Re7 {[%emt 0:03:24]} 40. Qc6 {[%emt 0:00:00]} Rg8 {[%emt 0:00:00][%cal Oe7e6]} (40... Re2 41. Be4 $17) 41. Be4 {[%emt 0:03:47]} Rge8 {[%emt 0:18:11]} 42. Rf5 {[%emt 0:06:19] [#]} Re6 $1 {[%emt 0:07:14]} (42... Qc1+ 43. Kh2 Re6 44. Qc7 $17) 43. Qc7 $2 {[%emt 0:03:44]} (43. Rxg5 Rxc6 44. Bxc6 Re1+ 45. Kh2 hxg5 46. Bxb5) 43... Qe7 {[%emt 0:00:20]} ({Less strong is} 43... Rxe4 44. Rxg5 hxg5 45. Qxa7 $16) (43... Qc1+ 44. Kh2 R6e7 45. Qd6 $17 (45. Rf8+ $2 Kg7 $19)) 44. Qf4 {[%emt 0:00:24]} Qd6 {[%emt 0:01:27]} (44... Rxe4 $2 45. Qxh6+ Qh7 46. Qf6+ Qg7 47. Rh5+ Kg8 48. Rg5 $18) 45. Qxd6 {[%emt 0:05:51]} Rxd6 {[%emt 0:00:04][%mdl 4096] Endgame KRR-KRB} 46. Bf3 {[%emt 0:00:07]} a6 {[%emt 0:00:13]} 47. Rc5 {[%emt 0:00:11]} Kg7 {[%emt 0:00:33]} 48. b3 {[%emt 0:02:20]} (48. a4 $142 Rb8 49. axb5 axb5 50. Kh2) 48... cxb3 {[%emt 0:00:28]} 49. axb3 {[%emt 0:00:01]} Re3 {[%emt 0:00:57] Inhibits Rc3.} 50. Bd5 {[%emt 0:00:25]} Kf6 {[%emt 0:00:21]} 51. Bg8 {[%emt 0:00:08]} Re8 {[%emt 0:00:26] Against Rc8} 52. Bh7 {[%emt 0:00:08]} Re7 {[%emt 0:01:53]} 53. Bc2 {[%emt 0:00:41]} Re2 {[%emt 0:00:26]} 54. Bh7 {[%emt 0:00:07]} Rd1+ {[%emt 0:00:16]} 55. Kh2 {[%emt 0:00:05]} Rdd2 {[%emt 0:00:04]} 56. Rc6+ {[%emt 0:00:04]} Kg7 {[%emt 0:00:17]} 57. Bf5 {[%emt 0:00:19]} Rxg2+ {[%emt 0:00:07]} 58. Kh1 {[%emt 0:00:01]} Rgf2 {[%emt 0:00:29] Weighted Error Value: White=0.49/Black=0.13 (very precise)} 0-1

[Event "31st Kavala Open-A 2022"]
[Site "Kavala"]
[Date "2022.07.31"]
[Round "7.12"]
[White "Zawadzka, Jolanta"]
[Black "Markidis, Konstantinos"]
[Result "1/2-1/2"]
[ECO "C12"]
[WhiteElo "2416"]
[BlackElo "2259"]
[Annotator "TA"]
[PlyCount "132"]
[EventDate "2022.07.27"]
[EventType "swiss"]
[EventCountry "GRE"]
[SourceTitle "playchess.com"]
[Source "ChessBase"]
[SourceQuality "1"]
[TimeControl "40/5400+30:1800+30"]

{[%evp 11,132,0,0,0,0,-7,0,-10,-15,-11,31,39,107,109,111,108,120,122,166,0,0,0,63,0,49,0,31,10,25,12,63,21,68,51,132,132,118,132,114,108,168,174,156,132,132,132,132,106,150,143,157,144,157,150,150,157,176,150,255,190,186,153,231,190,190,188,277,0,190,190,190,190,190,190,190,179,179,179,179,179,179,179,179,179,179,179,179,179,179,179,179,179,179,179,177,162,190,190,190,190,190,154,162,0,190,69,190,190,190,190,190,0,185,162,162,162,187,162,162,130,166,130,185]} 1. e4 {[%emt 0:02:22]} e6 {[%emt 0:02:30]} 2. d4 {[%emt 0:00:00]} d5 {[%emt 0:00:07]} 3. Nc3 {[%emt 0:00:00]} Nf6 {[%emt 0:00:16]} 4. Bg5 {[%emt 0:00:00]} Bb4 {[%emt 0:00:33]} 5. e5 {[%emt 0:00:00]} h6 {[%emt 0:00:13]} 6. Bc1 {[%emt 0:00:00]} Ne4 {[%emt 0:00:30]} 7. Qg4 {[%emt 0:00:00] C12: French: Classical System: McCutcheon Variation.} Kf8 {[%emt 0:00:44] And now ...c5 would win.} ({Don't do} 7... Nxc3 8. Qxg7 Kd7 9. Bd2 $16) 8. Nge2 {[%emt 0:00:00]} h5 {[%emt 0:01:35]} 9. Qf3 {[%emt 0:03:55] The position is equal.} c5 {[%emt 0:05:35]} 10. a3 {[%emt 0:04:23][%cal Ba2a3,Ba3b4][%mdl 32] [#]} Ba5 $146 {[%emt 0:13:37]} (10... Qa5 $5 {[%cal Rb8c6]}) ({Predecessor:} 10... Bxc3+ 11. Nxc3 Nc6 12. Nxe4 dxe4 13. Qxe4 Qxd4 14. Qxd4 Nxd4 15. Bd3 c4 16. Be4 Bd7 {1-0 (56) Saric,I (2655)-Pigott,J (2370) Caleta 2020}) 11. b4 $1 {[%emt 0:16:32]} Nxc3 {[%emt 0:24:10]} (11... cxb4 $14 12. Nxe4 dxe4) 12. Qxc3 $16 {[%emt 0:01:25]} cxb4 {[%emt 0:03:02]} 13. axb4 {[%emt 0:00:18]} Bc7 {[%emt 0:02:11]} 14. h4 {[%emt 0:06:28] White is more active.} Nc6 {[%emt 0:03:05]} 15. Nf4 $2 {[%emt 0:04:16] [#]} (15. Bg5 $18 Qd7 16. b5) 15... Bb6 $11 {[%emt 0:01:18]} 16. Ne2 {[%emt 0:11:52][%cal Bf4e2,Be2f4,Bf4h5][%mdl 32]} Bd7 {[%emt 0:00:41]} (16... Bc7 $1 $11) 17. Rh3 {[%emt 0:02:52]} (17. Qb2 $14) 17... Rc8 {[%emt 0:03:24]} (17... a5 $11) 18. Qd2 {[%emt 0:04:03]} (18. Qb2 $14) 18... Ne7 {[%emt 0:09:58]} (18... Kg8 $5 {[%cal Rf7f6]}) 19. Nf4 {[%emt 0:05:45]} Nf5 {[%emt 0:04:58][%csl LRd4,LRh4]} 20. c3 {[%emt 0:00:57]} Nxh4 {[%emt 0:00:50]} (20... Kg8 $11) 21. Be2 {[%emt 0:01:30]} Kg8 {[%emt 0:08:42]} (21... a6 $11 {feels stronger.}) 22. g3 $1 $14 {[%emt 0:05:55][%cal Bg2g3,Bg3g4,Bg4h5][%mdl 32]} Nf5 {[%emt 0:04:53]} (22... Ng6 $1 $14) 23. Nxh5 $16 {[%emt 0:01:53]} a6 {[%emt 0:01:54]} 24. g4 {[%emt 0:10:02]} Nh4 {[%emt 0:00:46]} 25. f4 {[%emt 0:00:21]} Bb5 {[%emt 0:00:18]} (25... Qe7 $16) 26. Bxb5 $18 {[%emt 0:00:39]} axb5 {[%emt 0:00:05]} 27. Qh2 {[%emt 0:00:40]} Rxh5 {[%emt 0:00:21]} 28. gxh5 {[%emt 0:00:11]} Nf5 {[%emt 0:00:06]} 29. Qe2 {[%emt 0:01:33]} Qd7 {[%emt 0:00:44]} 30. Qd3 {[%emt 0:03:37]} Kh7 {[%emt 0:00:42]} 31. Bd2 {[%emt 0:00:28][%cal Bc1d2,Bd2e1,Be1f2][%mdl 32]} Qc6 {[%emt 0:00:51]} 32. Ke2 {[%emt 0:00:40][%cal Be1e2,Be2d2,Bd2c2,Bc2b2][%mdl 32]} Kh8 {[%emt 0:00:39]} 33. Ra3 {[%emt 0:02:29]} Qe8 {[%emt 0:00:15]} 34. Be1 {[%emt 0:01:37]} Rc4 {[%emt 0:00:16]} (34... Bd8 $16 35. Bf2 Kg8) 35. Bf2 {[%emt 0:01:09]} Rc8 {[%emt 0:03:07]} 36. Rh1 {[%emt 0:00:52]} Rc4 {[%emt 0:00:27]} (36... Bd8 $16 {might work better.} 37. Ra7 Rb8) 37. Kd2 {[%emt 0:00:48]} Rc8 {[%emt 0:00:28]} 38. Bh4 {[%emt 0:04:13]} Rc4 {[%emt 0:01:07]} (38... Kh7 $142 39. Bg5 Ra8) 39. Bf2 {[%emt 0:02:14]} Rc8 $1 {[%emt 0:00:41]} 40. Kc2 {[%emt 0:00:00]} Rc4 {[%emt 0:00:00]} 41. Kb2 {[%emt 0:00:51]} Rc8 {[%emt 0:03:10]} 42. Rha1 {[%emt 0:08:34]} Kg8 {[%emt 0:00:28]} 43. Rg1 {[%emt 0:04:10]} Kh8 {[%emt 0:00:17]} 44. Raa1 {[%emt 0:01:59]} Qd7 {[%emt 0:00:43]} 45. Rg4 {[%emt 0:01:10]} Bd8 {[%emt 0:00:57]} 46. Rag1 {[%emt 0:00:23]} Be7 {[%emt 0:00:29]} 47. Be1 {[%emt 0:07:40]} Qe8 {[%emt 0:07:30]} 48. Bd2 {[%emt 0:00:42]} Qc6 {[%emt 0:02:01]} 49. Ra1 {[%emt 0:01:43]} Bd8 {[%emt 0:00:15]} 50. Rg2 {[%emt 0:02:13]} Bb6 {[%emt 0:00:39][%cal Of5d4]} 51. Be1 {[%emt 0:04:01]} Qe8 {[%emt 0:02:02]} 52. Rg5 {[%emt 0:00:26] aiming for Rxf5.} Qd7 {[%emt 0:00:20]} 53. Kb1 {[%emt 0:01:55]} Bd8 {[%emt 0:03:26]} 54. Rg2 {[%emt 0:00:07]} Bb6 {[%emt 0:00:19]} 55. Ra3 {[%emt 0:03:10]} Qc6 {[%emt 0:00:34][%cal Ob6d4]} 56. Qd2 {[%emt 0:00:15]} Kh7 {[%emt 0:00:23]} 57. Qd3 $2 {[%emt 0:00:47] [#]} (57. Qd1 $18) 57... Kh8 $2 {[%emt 0:00:35]} (57... Bxd4 $11 {and Black stays safe.} 58. Re2 (58. cxd4 Qc1+ 59. Ka2 Qxe1 $17) 58... Bb6) 58. Rga2 {[%emt 0:00:24]} (58. Rc2 $18) 58... Qe8 {[%emt 0:00:14]} ({Black should try} 58... Bxd4 $1 $14 59. Ra8 Be3) 59. Qe2 {[%emt 0:00:37]} Kh7 {[%emt 0:00:24]} 60. Qb2 {[%emt 0:00:18]} Ne3 {[%emt 0:03:45]} 61. Qe2 {[%emt 0:00:44]} Nf5 {[%emt 0:00:32]} 62. Kb2 {[%emt 0:00:39]} Kh8 {[%emt 0:01:09]} 63. Qd3 {[%emt 0:00:46]} Kh7 {[%emt 0:00:09]} 64. Kb3 {[%emt 0:00:22]} Kh8 {[%emt 0:00:28]} 65. Qd1 {[%emt 0:00:51]} Kh7 {[%emt 0:00:15]} (65... Qc6 $2 66. Ra8 $18) 66. Qb1 {[%emt 0:00:59]} Kh6 {[%emt 0:00:58] Weighted Error Value: White=0.23 (precise) /Black=0.26 (precise)} (66... Kg8 $16 67. Qd3 Kh8) 1/2-1/2

[Event "31st Kavala Open-A 2022"]
[Site "Kavala"]
[Date "2022.07.31"]
[Round "7.13"]
[White "Rahmanidis, Petros"]
[Black "Maltsevskaya, Aleksandra"]
[Result "1-0"]
[ECO "B65"]
[WhiteElo "2191"]
[BlackElo "2378"]
[Annotator "TA"]
[PlyCount "65"]
[EventDate "2022.07.27"]
[EventType "swiss"]
[EventCountry "GRE"]
[SourceTitle "playchess.com"]
[Source "ChessBase"]
[SourceQuality "1"]
[TimeControl "40/5400+30:1800+30"]

{[%evp 21,65,23,21,0,103,0,0,0,57,54,140,51,87,74,81,71,69,75,77,85,198,193,300,322,556,530,808,727,1225,1187,969,582,582,585,29982,29983,29983,10888,29988,29989,29989,29989,29988,29989,29991,29992]} 1. e4 {[%emt 0:00:12]} c5 {[%emt 0:00:21]} 2. Nf3 {[%emt 0:00:20]} Nc6 {[%emt 0:00:15]} 3. d4 {[%emt 0:00:22]} cxd4 {[%emt 0:00:07]} 4. Nxd4 {[%emt 0:00:06]} Nf6 {[%emt 0:00:24]} 5. Nc3 {[%emt 0:00:22]} d6 {[%emt 0:00:09]} 6. Bg5 {[%emt 0:01:14]} e6 {[%emt 0:00:09]} 7. Qd2 {[%emt 0:02:01]} Be7 {[%emt 0:02:28]} 8. O-O-O {[%emt 0:03:36]} O-O {[%emt 0:00:20]} 9. f4 {[%emt 0:09:50]} h6 {[%emt 0:00:19]} 10. Bh4 {[%emt 0:07:48]} Nxd4 {[%emt 0:00:10]} 11. Qxd4 {[%emt 0:00:12]} Qa5 {[%emt 0:00:06]} 12. Qd3 {[%emt 0:16:51] 12.e5 is the modern continuation. B65: Sicilian: Richter-Rauzer: 7...Be7 8 0-0-0 0-0 9 f4 Nxd4.} Re8 {[%emt 0:21:08] [#]} (12... b5 $11) 13. Be1 $146 {[%emt 0:05:26]} (13. Bxf6 $16 Bxf6 14. Qb5 Qxb5 15. Nxb5) ({Predecessor:} 13. Be2 Nxe4 14. Bxe7 Nxc3 15. Qxc3 Qxc3 16. bxc3 Rxe7 17. Rxd6 Bd7 18. Bf3 Be8 19. Rhd1 Rc7 {0-1 (45) Ravinsky,G-Fridstein,G Moscow 1957}) 13... Qc5 {[%emt 0:00:28]} 14. Qf3 {[%emt 0:08:00] The position is equal.} e5 {[%emt 0:05:36]} (14... Bd7 $11) 15. f5 $14 {[%emt 0:01:11]} a6 {[%emt 0:00:07]} ({Black should try} 15... Bd7 $14) 16. Bf2 {[%emt 0:04:03]} (16. g4 $16) 16... Qc6 {[%emt 0:05:44]} 17. g4 {[%emt 0:05:00] Black must now prevent h4. Black is now going downhill.} b5 {[%emt 0:00:09]} 18. h4 {[%emt 0:00:59]} Bb7 {[%emt 0:01:51]} 19. Nd5 $1 {[%emt 0:04:23] Hoping for Be3.} Rac8 {[%emt 0:01:35][%csl Gc8][%cal Rc6c2] [#]} 20. Rd2 {[%emt 0:00:33] g5 is the strong threat. Active counter play!} b4 {[%emt 0:11:40] [#]} (20... Nxd5 $16 21. exd5 Qc7) 21. Kb1 $1 $18 {[%emt 0:03:06] Strongly threatening g5.} Qa4 {[%emt 0:00:07]} (21... Nxd5 {might work better.} 22. exd5 Qc7) 22. b3 {[%emt 0:06:57]} Qa3 $2 {[%emt 0:00:08]} (22... Qc6 23. Bc4 Nxd5 24. Bxd5 Qc3 25. Qxc3 bxc3) 23. Nxf6+ {[%emt 0:02:12]} gxf6 {[%emt 0:07:31]} 24. Bd3 {[%emt 0:02:53]} a5 {[%emt 0:02:07]} 25. g5 {[%emt 0:00:27]} a4 {[%emt 0:05:08]} 26. Rg1 {[%emt 0:04:02] Threatening mate with gxf6+.} fxg5 {[%emt 0:01:02]} 27. f6 {[%emt 0:00:40]} Bf8 {[%emt 0:21:00]} 28. hxg5 {[%emt 0:00:51]} axb3 {[%emt 0:00:15]} 29. cxb3 {[%emt 0:01:30]} (29. gxh6+ $142 Kh8 30. cxb3 Rc3 31. Qg3 Qc1+ 32. Rxc1 Bxe4 33. Rxc3 bxc3 34. Rc2) 29... Rc3 {[%emt 0:00:53]} 30. gxh6+ {[%emt 0:03:04] White mates.} Kh7 {[%emt 0:00:06]} 31. Qf5+ {[%emt 0:01:23]} Kh8 {[%emt 0:00:06]} 32. Qg5 {[%emt 0:00:57][%csl Gg1][%cal Rg5g8]} Rxb3+ {[%emt 0:01:31]} 33. Ka1 {[%emt 0:00:14] Weighted Error Value: White=0.32/Black=0.79} 1-0

[Event "31st Kavala Open-A 2022"]
[Site "Kavala"]
[Date "2022.07.31"]
[Round "7.14"]
[White "Vafiadis, Kleanthis"]
[Black "Ortega Lopez, Mikel"]
[Result "1-0"]
[ECO "E14"]
[WhiteElo "2286"]
[BlackElo "2249"]
[Annotator "RC"]
[PlyCount "45"]
[EventDate "2022.07.27"]
[EventType "swiss"]
[EventCountry "GRE"]
[SourceTitle "playchess.com"]
[Source "ChessBase"]
[SourceQuality "1"]
[TimeControl "40/5400+30:1800+30"]

1. d4 {[%emt 0:00:30]} Nf6 {[%emt 0:00:30]} 2. c4 {[%emt 0:00:30]} e6 {[%emt 0:00:30]} 3. Nf3 {[%emt 0:00:30]} Bb4+ {[%emt 0:06:25]} 4. Nbd2 {[%emt 0:00:00]} b6 {[%emt 0:02:00]} 5. a3 {[%emt 0:03:18]} Bxd2+ {[%emt 0:00:30]} 6. Qxd2 {[%emt 0:00:30]} Bb7 {[%emt 0:00:23]} 7. e3 {[%emt 0:02:54]} Ne4 {[%emt 0:02:46]} 8. Qc2 {[%emt 0:02:17]} O-O {[%emt 0:01:43]} 9. Be2 {[%emt 0:00:50]} f5 {[%emt 0:02:06]} 10. b4 {[%emt 0:05:42]} d6 {[%emt 0:00:55]} 11. Bb2 {[%emt 0:00:14]} Nd7 {[%emt 0:00:40]} 12. O-O {[%emt 0:04:38]} Qe7 {[%emt 0:22:42]} 13. Rad1 Rf6 {[%emt 0:20:40]} 14. d5 {[%emt 0:02:38]} Rg6 {[%emt 0:03:32]} 15. Nd4 {[%emt 0:07:06]} exd5 {[%emt 0:04:07]} 16. Nxf5 {[%emt 0:00:23]} Qg5 {[%emt 0:00:53]} 17. Ng3 {[%emt 0:03:33]} Rh6 {[%emt 0:10:52]} 18. cxd5 {[%emt 0:16:56]} Qh4 {[%emt 0:00:00]} 19. h3 {[%emt 0:02:57]} Nxg3 {[%emt 0:00:00]} 20. fxg3 {[%emt 0:00:00]} Qxg3 {[%emt 0:00:00]} 21. Bg4 {[%emt 0:00:00]} Rf8 {[%emt 0:07:46]} 22. Bxd7 {[%emt 0:00:28]} Qxe3+ {[%emt 0:00:09]} 23. Kh2 {[%emt 0:01:38]} 1-0

[Event "31st Kavala Open-A 2022"]
[Site "Kavala"]
[Date "2022.07.31"]
[Round "7.15"]
[White "Kalogridis, Antonios"]
[Black "Magalakis, Stefanos"]
[Result "1/2-1/2"]
[ECO "E20"]
[WhiteElo "2272"]
[BlackElo "2181"]
[Annotator "TA"]
[PlyCount "70"]
[EventDate "2022.07.27"]
[EventType "swiss"]
[EventCountry "GRE"]
[SourceTitle "playchess.com"]
[Source "ChessBase"]
[SourceQuality "1"]
[TimeControl "40/5400+30:1800+30"]

{[%evp 14,70,14,12,14,0,28,24,22,20,12,20,29,22,7,-10,15,0,25,27,29,0,0,0,0,0,-2,-79,-68,-79,-67,-91,-85,-109,-113,-91,8,-35,0,-3,-3,-102,-10,-25,-14,-77,-66,-124,-127,-113,0,0,0,0,0,0,0,0,0]} 1. d4 {[%emt 0:00:01]} Nf6 {[%emt 0:00:30]} 2. c4 {[%emt 0:00:03]} e6 {[%emt 0:00:05]} 3. Nc3 {[%emt 0:00:02]} Bb4 {[%emt 0:00:06]} 4. f3 {[%emt 0:00:05]} c5 {[%emt 0:00:44]} 5. d5 {[%emt 0:00:03]} exd5 {[%emt 0:00:50]} 6. cxd5 {[%emt 0:00:11]} d6 {[%emt 0:00:09]} 7. e4 {[%emt 0:00:30]} O-O {[%emt 0:00:10]} 8. Nge2 {[%emt 0:00:34]} Nbd7 {[%emt 0:00:20] E20: Nimzo-Indian: 4 g3 and 4 f3.} 9. g4 {[%emt 0:00:04] [#]} Rb8 $146 {[%emt 0:11:17]} ({Predecessor:} 9... Nxe4 10. fxe4 Qh4+ 11. Ng3 Nf6 12. Bg2 Nxg4 13. Bf4 Nf2 14. Kxf2 Qxf4+ 15. Bf3 Bh3 16. Qc1 {½-½ (43) Chabanon,J (2485)-Sokolov,A (2556) Nimes 2014}) 10. Ng3 {[%emt 0:01:15]} b5 {[%emt 0:01:09] White has an edge.} 11. Be2 {[%emt 0:02:22]} c4 {[%emt 0:03:35]} 12. O-O {[%emt 0:16:03]} Bc5+ {[%emt 0:14:40]} 13. Kh1 {[%emt 0:01:18]} a6 {[%emt 0:04:54]} ({Weaker is} 13... b4 14. Na4 $16) 14. f4 {[%emt 0:06:19]} Nb6 {[%emt 0:09:29]} ({But not} 14... b4 15. Na4 $14) 15. a3 {[%emt 0:01:42]} Ne8 {[%emt 0:10:24]} 16. Bf3 {[%emt 0:10:00]} Nc7 {[%emt 0:08:54]} 17. e5 {[%emt 0:08:58]} Bb7 {[%emt 0:04:45] aiming for ...dxe5.} 18. exd6 {[%emt 0:00:12]} Ne8 {[%emt 0:01:55]} 19. Nge4 {[%emt 0:15:38]} Nd7 {[%emt 0:02:44]} 20. b4 {[%emt 0:03:31]} (20. f5 $11) 20... cxb3 $1 $17 {[%emt 0:01:26]} 21. Qxb3 {[%emt 0:02:50]} Nxd6 {[%emt 0:01:13]} 22. Nxd6 {[%emt 0:02:22]} Bxd6 {[%emt 0:00:07]} 23. Ne4 {[%emt 0:00:05]} Nb6 {[%emt 0:08:05]} 24. Rd1 {[%emt 0:00:52]} Nc4 {[%emt 0:01:50]} (24... Re8 $17) 25. Qd3 {[%emt 0:00:31]} (25. a4 $5 {[%cal Ra4b5]}) 25... f6 {[%emt 0:02:30]} 26. Ra2 {[%emt 0:01:49]} Qc7 {[%emt 0:01:29]} 27. Re2 {[%emt 0:05:20]} (27. Nxd6 $11 Qxd6 28. a4) 27... Rbe8 {[%emt 0:02:14]} (27... Bxf4 $17 28. Nc5 Bxc1 29. Nxb7 Qxb7 30. Rxc1 Ne5) 28. Rde1 {[%emt 0:02:08][%cal Oe4f6] [#] Hoping for Nxf6+!} Rd8 {[%emt 0:03:16]} 29. Ng3 {[%emt 0:02:34]} (29. g5 $11 {remains equal.}) 29... Rd7 {[%emt 0:02:22]} 30. Nf5 {[%emt 0:06:51]} (30. Ne4 $15) 30... Bxf4 {[%emt 0:01:22] And now ...Ne5 would win.} 31. Re7 {[%emt 0:01:51] Strongly threatening Bxf4.} Be5 {[%emt 0:01:07]} (31... Bxc1 $17 32. Rxc1 Rxe7) 32. Nh6+ $1 $11 {[%emt 0:03:02][%cal Bf5h6,Bf7h6,Bh6f7][%mdl 32] The position is equal.} Kh8 {[%emt 0:00:02]} 33. Nf7+ $1 {[%emt 0:00:20]} Kg8 {[%emt 0:00:01]} 34. Nh6+ $1 {[%emt 0:00:05]} Kh8 {[%emt 0:00:02]} 35. Nf7+ $1 {[%emt 0:01:43]} Kg8 {[%emt 0:00:03] Weighted Error Value: White=0.20 (precise) /Black=0.23 (precise)} 1/2-1/2

[Event "31st Kavala Open-A 2022"]
[Site "Kavala"]
[Date "2022.07.31"]
[Round "7.16"]
[White "Tsaknakis, Zisis"]
[Black "Apostolakakis, Konstantinos"]
[Result "1/2-1/2"]
[ECO "B94"]
[WhiteElo "2266"]
[BlackElo "2072"]
[Annotator "RC"]
[PlyCount "59"]
[EventDate "2022.07.27"]
[EventType "swiss"]
[EventCountry "GRE"]
[SourceTitle "playchess.com"]
[Source "ChessBase"]
[SourceQuality "1"]
[TimeControl "40/5400+30:1800+30"]

1. e4 {[%emt 0:01:36]} c5 {[%emt 0:00:17]} 2. Nf3 {[%emt 0:00:05]} d6 {[%emt 0:00:09]} 3. d4 {[%emt 0:00:04]} cxd4 {[%emt 0:00:23]} 4. Nxd4 {[%emt 0:00:02]} Nf6 {[%emt 0:00:14]} 5. Nc3 {[%emt 0:00:04]} a6 {[%emt 0:00:15]} 6. Bg5 {[%emt 0:00:13]} Nbd7 {[%emt 0:00:24]} 7. f4 {[%emt 0:00:09]} Qc7 {[%emt 0:00:16]} 8. Qf3 {[%emt 0:00:03]} b5 {[%emt 0:00:23]} 9. O-O-O {[%emt 0:00:04]} Bb7 {[%emt 0:00:12]} 10. Nd5 {[%emt 0:00:11]} Nxd5 {[%emt 0:01:00]} 11. exd5 {[%emt 0:00:03]} g6 {[%emt 0:03:11]} 12. Bd3 {[%emt 0:00:02]} Bg7 {[%emt 0:04:58]} 13. Rhe1 {[%emt 0:04:16]} Nf6 {[%emt 0:00:56]} 14. Nc6 {[%emt 0:00:11]} e6 {[%emt 0:01:12]} 15. f5 {[%emt 0:05:27]} O-O {[%emt 0:01:06]} 16. fxe6 {[%emt 0:15:44]} fxe6 {[%emt 0:00:06]} 17. Rxe6 {[%emt 0:01:09]} Nxd5 {[%emt 0:01:03]} 18. Qxd5 {[%emt 0:00:29]} Qxc6 {[%emt 0:02:17]} 19. Qxc6 {[%emt 0:14:44]} Bxc6 {[%emt 0:00:07]} 20. Re2 {[%emt 0:01:46]} Be5 {[%emt 0:08:01]} 21. h4 {[%emt 0:02:31]} Rf7 {[%emt 0:05:11]} 22. c3 {[%emt 0:12:42]} Raf8 {[%emt 0:16:43]} 23. Be4 {[%emt 0:08:30]} Bxe4 {[%emt 0:01:46]} 24. Rxe4 {[%emt 0:00:02]} Rf1 {[%emt 0:04:04]} 25. Rxf1 {[%emt 0:03:18]} Rxf1+ {[%emt 0:00:09]} 26. Kd2 {[%emt 0:00:02]} Rf2+ {[%emt 0:01:02]} 27. Re2 {[%emt 0:00:07]} Rxe2+ {[%emt 0:00:10]} 28. Kxe2 {[%emt 0:00:02]} Kf7 {[%emt 0:00:40]} 29. g4 {[%emt 0:05:52]} h5 {[%emt 0:00:13]} 30. Kf3 {[%emt 0:02:25]} 1/2-1/2